fUST/lending_fUST_20240225
["ID","MTS","AMOUNT","RATE_DAILY","PERIOD"]
[315117778,1708847447677,-500.0,0.00019726,2]
[315117779,1708847447686,-500.0,0.00019726,2]
[315117780,1708847447695,-500.0,0.00019726,2]
[315117781,1708847447705,-500.0,0.00019726,2]
[315117782,1708847447714,-500.0,0.00019726,2]
[315117783,1708847447723,-1124.41,0.00019726,2]
[315117784,1708847447732,-500.0,0.00019726,2]
[315117785,1708847447742,-166.56,0.00019726,2]
[315117786,1708847447751,-500.0,0.00019726,2]
[315117787,1708847447760,-500.0,0.00019726,2]
[315117788,1708847447769,-500.0,0.00019726,2]
[315117789,1708847447779,-567.1,0.00019726,2]
[315117790,1708847447788,-500.0,0.00019726,2]
[315117791,1708847447797,-500.0,0.00019726,2]
[315117792,1708847447807,-1465.86,0.00019726,2]
[315117793,1708847447816,-694.52,0.00019726,2]
[315117794,1708847447828,-411.18809948,0.00019726,2]
[315117795,1708847447837,-371.34330187,0.00019726,2]
[315117796,1708847447846,-3605.26,0.00019726,2]
[315117797,1708847447855,-1330.71,0.00019726,2]
[315117798,1708847447865,-892.78,0.00019726,2]
[315117799,1708847447874,-1012.92,0.00019726,2]
[315117800,1708847447883,-787.55,0.00019726,2]
[315117801,1708847447892,-636.02240313,0.00019726,2]
[315117802,1708847447902,-775.44,0.00019726,2]
[315117803,1708847447911,-870.81,0.00019726,2]
[315117804,1708847447922,-500.0,0.00019726,2]
[315117805,1708847447931,-1211.98,0.00019726,2]
[315117806,1708847447940,-967.99,0.00019726,2]
[315117807,1708847447949,-500.0,0.00019726,2]
[315117808,1708847448052,-1462.5,0.00019726,2]
[315117809,1708847448063,-942.85,0.00019726,2]
[315117810,1708847448071,-500.0,0.00019726,2]
[315117811,1708847448081,-500.0,0.00019726,2]
[315117812,1708847448090,-921.5,0.00019726,2]
[315117813,1708847448099,-500.0,0.00019726,2]
[315117814,1708847448108,-1179.39,0.00019726,2]
[315117815,1708847448117,-500.0,0.00019726,2]
[315117816,1708847448126,-500.0,0.00019726,2]
[315117817,1708847448136,-500.0,0.00019726,2]
[315117818,1708847448145,-8652.11,0.00019726,2]
[315117819,1708847448156,-6910.92,0.00019726,2]
[315117820,1708847448165,-417.13616289,0.00019726,2]
[315117821,1708847448174,-500.0,0.00019726,2]
[315117822,1708847448182,-500.0,0.00019726,2]
[315117823,1708847448192,-516.04418398,0.00019726,2]
[315117824,1708847448201,-500.0,0.00019726,2]
[315117825,1708847448210,-4284.38,0.00019726,2]
[315117826,1708847448219,-500.0,0.00019726,2]
[315117827,1708847448228,-500.0,0.00019726,2]
[315117828,1708847448238,-500.0,0.00019726,2]
[315117829,1708847448249,-500.0,0.00019726,2]
[315117830,1708847448259,-1749.05,0.00019726,2]
[315117831,1708847448269,-500.0,0.00019726,2]
[315117832,1708847448278,-500.0,0.00019726,2]
[315117833,1708847448287,-708.06,0.00019726,2]
[315117834,1708847448296,-500.0,0.00019726,2]
[315117835,1708847448306,-626.98,0.00019726,2]
[315117836,1708847448315,-586.82,0.00019726,2]
[315117837,1708847448324,-2855.65,0.00019726,2]
[315117838,1708847448333,-723.93,0.00019871,2]
[315117839,1708847448342,-723.93,0.00019871,2]
[315117840,1708847448351,-177.3834312,0.00019924,2]
[315117841,1708847448361,-154.0611398,0.00019973,2]
[315117842,1708847448370,-723.93,0.00019999,2]
[315117843,1708847448379,-500.0,0.0002,2]
[315117844,1708847448389,-709.03,0.0002,2]
[315117845,1708847448398,-500.0,0.0002,2]
[315117846,1708847448407,-409.98,0.0002,2]
[315117847,1708847448416,-182.76982878,0.0002,2]
[315117848,1708847448425,-500.0,0.0002,2]
[315117849,1708847448435,-1124.41,0.0002,2]
[315117850,1708847448444,-500.0,0.0002,2]
[315117851,1708847448453,-414.52,0.0002,2]
[315117852,1708847448462,-500.0,0.0002,2]
[315117853,1708847448472,-500.0,0.0002,2]
[315117854,1708847448481,-567.1,0.0002,2]
[315117855,1708847448491,-500.0,0.0002,2]
[315117856,1708847448500,-500.0,0.0002,2]
[315117857,1708847448510,-1465.86,0.0002,2]
[315117858,1708847448519,-694.52,0.0002,2]
[315117859,1708847448528,-3605.26,0.0002,2]
[315117860,1708847448537,-1330.71,0.0002,2]
[315117861,1708847448546,-892.78,0.0002,2]
[315117862,1708847448556,-1012.92,0.0002,2]
[315117863,1708847448567,-787.55,0.0002,2]
[315117864,1708847448576,-775.44,0.0002,2]
[315117865,1708847448586,-870.81,0.0002,2]
[315117866,1708847448595,-500.0,0.0002,2]
[315117867,1708847448606,-1211.98,0.0002,2]
[315117868,1708847448615,-967.99,0.0002,2]
[315117869,1708847448624,-500.0,0.0002,2]
[315117870,1708847448633,-1462.5,0.0002,2]
[315117871,1708847448643,-942.85,0.0002,2]
[315117872,1708847448653,-500.0,0.0002,2]
[315117873,1708847448662,-921.5,0.0002,2]
[315117874,1708847448672,-500.0,0.0002,2]
[315117875,1708847448681,-1179.39,0.0002,2]
[315117876,1708847448689,-500.0,0.0002,2]
[315117877,1708847448698,-500.0,0.0002,2]
[315117878,1708847448707,-500.0,0.0002,2]
[315117879,1708847448716,-8652.11,0.0002,2]
[315117880,1708847448727,-6910.92,0.0002,2]
[315117881,1708847448736,-500.0,0.0002,2]
[315117882,1708847448745,-4284.38,0.0002,2]
[315117883,1708847448754,-500.0,0.0002,2]
[315117884,1708847448763,-151.45456969,0.0002,2]
[315117885,1708847448772,-1749.05,0.0002,2]
[315117886,1708847448781,-401.79,0.0002,2]
[315117887,1708847448791,-708.06,0.0002,2]
[315117888,1708847448799,-626.98,0.0002,2]
[315117889,1708847448808,-586.82,0.0002,2]
[315117890,1708847448818,-2855.65,0.0002,2]
[315117891,1708847448827,-166.666666,0.00020076,2]
[315117892,1708847448836,-153.0,0.00020082,2]
[315117893,1708847448845,-153.0,0.00020082,2]
[315117894,1708847448854,-153.0,0.00020082,2]
[315117895,1708847448863,-153.0,0.00020082,2]
[315117896,1708847448872,-153.0,0.00020082,2]
[315117897,1708847448881,-177.3834312,0.00020223,2]
[315117898,1708847448889,-723.93,0.00020272,2]
[315117899,1708847448899,-723.93,0.00020272,2]
[315117900,1708847448908,-723.93,0.00020272,2]
[315117901,1708847448916,-723.93,0.00020272,2]
[315117902,1708847448925,-723.93,0.00020272,2]
[315117903,1708847448934,-724.01272049,0.00020272,2]
[315117904,1708847448943,-500.0,0.00020273,2]
[315117905,1708847448953,-709.03,0.00020273,2]
[315117906,1708847448961,-500.0,0.00020273,2]
[315117907,1708847448970,-500.0,0.00020273,2]
[315117908,1708847448979,-1124.41,0.00020273,2]
[315117909,1708847448988,-500.0,0.00020273,2]
[315117910,1708847448997,-500.0,0.00020273,2]
[315117911,1708847449006,-500.0,0.00020273,2]
[315117912,1708847449015,-567.1,0.00020273,2]
[315117913,1708847449024,-373.02971594,0.00020273,2]
[315117914,1708847449033,-323.9629991,0.00020273,2]
[315117915,1708847449042,-1465.86,0.00020273,2]
[315117916,1708847449051,-694.52,0.00020273,2]
[315117917,1708847449060,-3605.26,0.00020273,2]
[315117918,1708847449069,-1330.71,0.00020273,2]
[315117919,1708847449079,-892.78,0.00020273,2]
[315117920,1708847449087,-1012.92,0.00020273,2]
[315117921,1708847449097,-787.55,0.00020273,2]
[315117922,1708847449106,-775.44,0.00020273,2]
[315117923,1708847449115,-870.81,0.00020273,2]
[315117924,1708847449124,-500.0,0.00020273,2]
[315117925,1708847449133,-1211.98,0.00020273,2]
[315117926,1708847449142,-967.99,0.00020273,2]
[315117927,1708847449151,-1462.5,0.00020273,2]
[315117928,1708847449160,-942.85,0.00020273,2]
[315117929,1708847449170,-921.5,0.00020273,2]
[315117930,1708847449178,-420.32,0.00020273,2]
[315117931,1708847449188,-1179.39,0.00020273,2]
[315117932,1708847449197,-500.0,0.00020273,2]
[315117933,1708847449206,-500.0,0.00020273,2]
[315117934,1708847449215,-500.0,0.00020273,2]
[315117935,1708847449224,-8652.11,0.00020273,2]
[315117936,1708847449236,-6910.92,0.00020273,2]
[315117937,1708847449249,-500.0,0.00020273,2]
[315117938,1708847449261,-4284.38,0.00020273,2]
[315117939,1708847449274,-500.0,0.00020273,2]
[315117940,1708847449286,-1749.05,0.00020273,2]
[315117941,1708847449298,-708.06,0.00020273,2]
[315117942,1708847449308,-626.98,0.00020273,2]
[315117943,1708847449318,-586.82,0.00020273,2]
[315117944,1708847449330,-2855.65,0.00020273,2]
[315117945,1708847449341,-153.0,0.00020356,2]
[315117946,1708847449353,-153.0,0.00020356,2]
[315117947,1708847449364,-153.0,0.00020356,2]
[315117948,1708847449377,-153.0,0.00020356,2]
[315117949,1708847449389,-153.0,0.00020356,2]
[315117950,1708847449401,-153.0,0.00020356,2]
[315117951,1708847449413,-153.0,0.00020356,2]
[315117952,1708847449424,-153.0,0.00020356,2]
[315117953,1708847449434,-153.0,0.00020356,2]
[315117954,1708847449445,-153.0,0.00020356,2]
[315117955,1708847449456,-2819.61232081,0.00020424,2]
[315117956,1708847449467,-155.56991007,0.00020519,2]
[315117957,1708847449479,-154.95351395,0.00020519,2]
[315117958,1708847449490,-155.43221653,0.0002052,2]
[315117959,1708847449501,-177.3834312,0.00020521,2]
[315117960,1708847449513,-276000.0,0.00020521,2]
[315117961,1708847449524,-166.666666,0.00020524,2]
[315117962,1708847449536,-500.0,0.00020547,2]
[315117963,1708847449548,-709.03,0.00020547,2]
[315117964,1708847449562,-500.0,0.00020547,2]
[315117965,1708847449571,-500.0,0.00020547,2]
[315117966,1708847449582,-1124.41,0.00020547,2]
[315117967,1708847449592,-500.0,0.00020547,2]
[315117968,1708847449606,-500.0,0.00020547,2]
[315117969,1708847449618,-567.1,0.00020547,2]
[315117970,1708847449630,-1465.86,0.00020547,2]
[315117971,1708847449644,-694.52,0.00020547,2]
[315117972,1708847449654,-3605.26,0.00020547,2]
[315117973,1708847449666,-892.78,0.00020547,2]
[315117974,1708847449676,-1330.71,0.00020547,2]
[315117975,1708847449687,-1012.92,0.00020547,2]
[315117976,1708847449698,-787.55,0.00020547,2]
[315117977,1708847449709,-775.44,0.00020547,2]
[315117978,1708847449721,-870.81,0.00020547,2]
[315117979,1708847449731,-500.0,0.00020547,2]
[315117980,1708847449744,-1211.98,0.00020547,2]
[315117981,1708847449756,-967.99,0.00020547,2]
[315117982,1708847449769,-1462.5,0.00020547,2]
[315117983,1708847449781,-942.85,0.00020547,2]
[315117984,1708847449793,-921.5,0.00020547,2]
[315117985,1708847449806,-1179.39,0.00020547,2]
[315117986,1708847449816,-500.0,0.00020547,2]
[315117987,1708847449826,-500.0,0.00020547,2]
[315117988,1708847449836,-500.0,0.00020547,2]
[315117989,1708847449847,-8652.11,0.00020547,2]
[315117990,1708847449858,-6910.92,0.00020547,2]
[315117991,1708847449869,-500.0,0.00020547,2]
[315117992,1708847449881,-4284.38,0.00020547,2]
[315117993,1708847449892,-500.0,0.00020547,2]
[315117994,1708847449903,-1749.05,0.00020547,2]
[315117995,1708847449914,-708.06,0.00020547,2]
[315117996,1708847449927,-626.98,0.00020547,2]
[315117997,1708847449939,-586.82,0.00020547,2]
[315117998,1708847449950,-2855.65,0.00020547,2]
[315117999,1708847449962,-153.0,0.000206,2]
[315118000,1708847449971,-815.29047767,0.00020619,2]
[315118001,1708847449982,-13548.75490579,0.00020621,2]
[315118002,1708847449992,-50000.0,0.00020621,2]
[315118003,1708847450003,-50000.0,0.00020621,2]
[315118004,1708847450013,-50000.0,0.00020621,2]
[315118005,1708847450023,-5000.0,0.00020621,2]
[315118006,1708847450034,-33104.33033529,0.00020621,2]
[315118007,1708847450044,-5000.0,0.00020621,2]
[315118008,1708847450057,-5000.0,0.00020621,2]
[315118009,1708847450068,-5000.0,0.00020621,2]
[315118010,1708847450078,-50000.0,0.00020621,2]
[315118011,1708847450089,-50000.0,0.00020621,2]
[315118012,1708847450099,-29730.65371016,0.00020621,2]
[315118019,1708848172241,24900.0,0.00018039,2]
[315118064,1708848632643,-336.14592556,0.00018299,2]
[315118065,1708848632653,-31888.41510707,0.00018399,2]
[315118066,1708848632665,-15355.92995623,0.00018399,2]
[315118067,1708848632676,-1249.24812341,0.00018399,2]
[315118099,1708848638528,-2579.27133739,0.00018399,2]
[315118101,1708848638540,-3953.90549777,0.00018399,2]
[315118103,1708848638549,-21546.09450225,0.000184,2]
[315118105,1708848638560,-10210.19963456,0.000184,2]
[315118141,1708848641658,-1298.43728682,0.000184,2]
[315118232,1708848646653,-3531.69502629,0.000184,2]
[315118246,1708849068790,10643.7479303,0.00017981,2]
[315118273,1708849734919,-154.95351395,0.00018198,2]
[315118337,1708849833225,-907.6956901,0.00018199,2]
[315118338,1708849833235,-168.91839765,0.000183,2]
[315118339,1708849833244,-1278.80052348,0.00018399,2]
[315118340,1708849833256,-5312.18753243,0.00018399,2]
[315118341,1708849833282,-517.39984991,0.00018399,2]
[315118342,1708849833296,-5253.30965585,0.00018399,2]
[315118343,1708849833307,-2414.42745405,0.00018399,2]
[315118387,1708849837751,-12829.06061587,0.00018399,2]
[315118388,1708849837760,-11351.92924186,0.000184,2]
[315118389,1708849837772,-2486.51754552,0.000184,2]
[315118407,1708849840877,-2935.45426387,0.000184,2]
[315118465,1708849845831,-5090.0,0.000184,2]
[315118491,1708849891599,-1862.38592717,0.00018399,2]
[315118492,1708849891621,-1862.38592717,0.00018399,2]
[315118493,1708849926625,-8000.0,0.000184,2]
[315118501,1708850482725,10000.0,0.00022,22]
[315118503,1708850812079,7448.33306027,0.0002,6]
[315118509,1708851031990,-1767.7569662,0.00018227,2]
[315118510,1708851031999,-2248.86724031,0.000184,2]
[315118511,1708851032011,-7856.45958909,0.000184,2]
[315118512,1708851032020,-4471.13434894,0.0001899,2]
[315118582,1708851037967,-528.1243638,0.0001899,2]
[315118610,1708851041005,-3229.91177839,0.0001899,2]
[315118611,1708851041015,-1426.0,0.00019,2]
[315118612,1708851041025,-29118.0,0.00019,2]
[315118613,1708851041035,-155.24362545,0.000191,2]
[315118614,1708851041044,-153.03660167,0.00019178,2]
[315118615,1708851041053,-164.85964211,0.00019178,2]
[315118616,1708851041063,-500.0,0.00019178,2]
[315118617,1708851041072,-531.78,0.00019178,2]
[315118618,1708851041081,-500.0,0.00019178,2]
[315118619,1708851041091,-500.0,0.00019178,2]
[315118620,1708851041100,-897.48,0.00019178,2]
[315118621,1708851041110,-500.0,0.00019178,2]
[315118622,1708851041119,-500.0,0.00019178,2]
[315118623,1708851041128,-494.88651337,0.00019178,2]
[315118624,1708851041138,-500.0,0.00019178,2]
[315118625,1708851041148,-1120.78,0.00019178,2]
[315118626,1708851041157,-520.89,0.00019178,2]
[315118627,1708851041166,-500.0,0.00019178,2]
[315118628,1708851041175,-1042.65,0.00019178,2]
[315118629,1708851041185,-500.0,0.00019178,2]
[315118630,1708851041195,-500.0,0.00019178,2]
[315118631,1708851041204,-593.2402925,0.00019178,2]
[315118632,1708851041213,-500.0,0.00019178,2]
[315118633,1708851041223,-224.74992309,0.00019178,2]
[315118634,1708851041232,-500.0,0.00019178,2]
[315118635,1708851041241,-500.0,0.00019178,2]
[315118636,1708851041250,-809.5,0.00019178,2]
[315118637,1708851041259,-500.0,0.00019178,2]
[315118638,1708851041269,-608.86,0.00019178,2]
[315118639,1708851041279,-500.0,0.00019178,2]
[315118640,1708851041288,-698.29,0.00019178,2]
[315118641,1708851041297,-682.27,0.00019178,2]
[315118642,1708851041307,-531.04,0.00019178,2]
[315118643,1708851041317,-500.0,0.00019178,2]
[315118644,1708851041327,-625.48,0.00019178,2]
[315118645,1708851041336,-500.0,0.00019178,2]
[315118646,1708851041346,-857.23,0.00019178,2]
[315118647,1708851041355,-377.54615885,0.00019178,2]
[315118648,1708851041368,-122.45384115,0.00019178,2]
[315118649,1708851041377,-500.0,0.00019178,2]
[315118650,1708851041388,-1139.6,0.00019178,2]
[315118651,1708851041397,-500.0,0.00019178,2]
[315118652,1708851041407,-843.76,0.00019178,2]
[315118653,1708851041416,-500.0,0.00019178,2]
[315118654,1708851041426,-500.0,0.00019178,2]
[315118655,1708851041436,-500.0,0.00019178,2]
[315118656,1708851041445,-735.93,0.00019178,2]
[315118657,1708851041454,-789.24865107,0.00019178,2]
[315118697,1708851045978,-538.61450309,0.00019178,2]
[315118699,1708851046035,-532.24884834,0.00019178,2]
[315118700,1708851046047,-307.49184052,0.00019178,2]
[315118719,1708851718340,250.0,0.00018084,2]
[315118721,1708851994495,225.09983032,0.00017994,2]
[315118723,1708852127663,1293.76139859,0.00017994,2]
[315118724,1708852147648,1293.76139859,0.00017994,2]
[315118725,1708852163642,1293.76139859,0.00017994,2]
[315118726,1708852187645,1293.76139859,0.00017994,2]
[315118727,1708852205651,1293.76139859,0.00017994,2]
[315118763,1708852221650,1293.76139859,0.00017994,2]
[315118857,1708852238155,-2926.99896226,0.00018173,2]
[315118858,1708852238165,-4377.2450224,0.00018228,2]
[315118859,1708852238175,-636.15605336,0.00018658,2]
[315118860,1708852238185,-1281.5752188,0.000189,2]
[315118861,1708852238194,-174.83269631,0.00019078,2]
[315118862,1708852238204,-431.91651792,0.00019078,2]
[315118863,1708852238214,-500.0,0.00019178,2]
[315118864,1708852238223,-500.0,0.00019178,2]
[315118865,1708852238233,-860.08,0.00019178,2]
[315118866,1708852238242,-775.77,0.00019178,2]
[315118867,1708852238251,-500.0,0.00019178,2]
[315118868,1708852238259,-500.0,0.00019178,2]
[315118869,1708852238269,-500.0,0.00019178,2]
[315118870,1708852238279,-500.0,0.00019178,2]
[315118871,1708852238288,-500.0,0.00019178,2]
[315118872,1708852238298,-505.08,0.00019178,2]
[315118873,1708852238307,-500.0,0.00019178,2]
[315118874,1708852238316,-500.0,0.00019178,2]
[315118875,1708852238326,-508.6,0.00019178,2]
[315118876,1708852238335,-521.8,0.00019178,2]
[315118877,1708852238345,-1074.08,0.00019178,2]
[315118878,1708852238355,-500.0,0.00019178,2]
[315118879,1708852238365,-999.21,0.00019178,2]
[315118880,1708852238374,-310.415774,0.00019178,2]
[315118881,1708852238384,-310.415774,0.00019178,2]
[315118882,1708852238393,-669.2,0.00019178,2]
[315118883,1708852238403,-245.125612,0.00019178,2]
[315118884,1708852238413,-500.0,0.00019178,2]
[315118885,1708852238423,-245.125612,0.00019178,2]
[315118886,1708852238433,-500.0,0.00019178,2]
[315118887,1708852238443,-219.99213081,0.00019178,2]
[315118888,1708852238452,-821.51,0.00019178,2]
[315118889,1708852238461,-599.42,0.00019178,2]
[315118890,1708852238470,-653.85,0.00019178,2]
[315118891,1708852238479,-301.6006261,0.00019178,2]
[315118892,1708852238561,-740.2793739,0.00019178,2]
[315118893,1708852238571,-546.39,0.00019178,2]
[315118894,1708852238580,-500.0,0.00019178,2]
[315118895,1708852238591,-500.0,0.00019178,2]
[315118896,1708852238601,-501.22134572,0.00019178,2]
[315118897,1708852238610,-808.6,0.00019178,2]
[315118898,1708852238620,-1092.12,0.00019178,2]
[315118899,1708852238629,-7381.06,0.00019178,2]
[315118900,1708852238638,-500.0,0.00019178,2]
[315118901,1708852238647,-965.61,0.00019178,2]
[315118902,1708852238656,-500.0,0.00019178,2]
[315118903,1708852238665,-245.7458071,0.00019178,2]
[315118904,1708852239663,1293.76139859,0.00017994,2]
[315118924,1708852241295,-2034.64891213,0.00019178,2]
[315118925,1708852241307,-4042.84528077,0.00019178,2]
[315118926,1708852241316,-521.26,0.00019178,2]
[315118927,1708852241326,-429.8,0.00019178,2]
[315118928,1708852241336,-500.0,0.00019178,2]
[315118929,1708852241345,-174.56092939,0.00019178,2]
[315118930,1708852241355,-514.88,0.00019178,2]
[315118931,1708852241364,-500.0,0.00019178,2]
[315118932,1708852241373,-500.0,0.00019178,2]
[315118933,1708852241382,-3519.61,0.00019178,2]
[315118934,1708852241391,-2303.02,0.00019178,2]
[315118935,1708852241401,-551.81,0.00019178,2]
[315118936,1708852241410,-2962.81,0.00019178,2]
[315118937,1708852241419,-500.0,0.00019178,2]
[315118938,1708852241429,-500.0,0.00019178,2]
[315118939,1708852241437,-500.0,0.00019178,2]
[315118940,1708852241447,-500.0,0.00019178,2]
[315118941,1708852241457,-500.0,0.00019178,2]
[315118942,1708852241466,-880.38,0.00019178,2]
[315118943,1708852241476,-1311.78,0.00019178,2]
[315118944,1708852241485,-500.0,0.00019178,2]
[315118945,1708852241495,-500.0,0.00019178,2]
[315118946,1708852241504,-508.92,0.00019178,2]
[315118947,1708852241513,-181.735317,0.00019178,2]
[315118948,1708852241522,-161.435405,0.00019178,2]
[315118949,1708852241532,-166.666666,0.00019178,2]
[315118950,1708852241541,-153.0,0.000194,2]
[315118951,1708852241551,-153.0,0.000194,2]
[315118952,1708852241560,-153.0,0.000194,2]
[315118953,1708852241569,-278.2948905,0.000194,2]
[315118954,1708852241579,-188.753833,0.000194,2]
[315118955,1708852241589,-188.753833,0.000194,2]
[315118956,1708852241599,-245.125612,0.00019412,2]
[315118957,1708852241608,-245.125612,0.00019412,2]
[315118958,1708852241618,-188.753833,0.00019412,2]
[315118959,1708852241627,-188.753833,0.00019412,2]
[315118960,1708852241636,-151.0,0.00019422,2]
[315118961,1708852241645,-310.415774,0.00019422,2]
[315118962,1708852241654,-310.415774,0.00019422,2]
[315118963,1708852241805,-245.125612,0.00019422,2]
[315118964,1708852241814,-245.125612,0.00019422,2]
[315118965,1708852241823,-188.753833,0.00019422,2]
[315118966,1708852241834,-188.753833,0.00019422,2]
[315118967,1708852241843,-19645.86,0.00019422,3]
[315118968,1708852241853,-151.0,0.00019432,2]
[315118969,1708852241862,-310.415774,0.00019432,2]
[315118970,1708852241872,-181.83488049,0.00019432,2]
[315118997,1708852243170,-128.58089351,0.00019432,2]
[315118998,1708852243180,-245.125612,0.00019432,2]
[315118999,1708852243190,-245.125612,0.00019432,2]
[315119000,1708852243199,-243.24355999,0.00019432,3]
[315119003,1708852243226,-4440.78,0.00019432,3]
[315119016,1708852246228,-1208.14109553,0.00019422,3]
[315119042,1708853246414,3514.7564826,0.00018046,2]
[315119043,1708853327592,850.9285165,0.00018064,2]
[315119044,1708853355671,151.61218331,0.00017794,2]
[315119067,1708853432365,-480.04490054,0.00018235,2]
[315119184,1708853443293,-154.98450155,0.00018234,2]
[315119186,1708853443303,-1225.23569445,0.00018235,2]
[315119234,1708853446369,-1260.31862051,0.00018235,2]
[315119235,1708853446379,-542.38964774,0.00018407,2]
[315119236,1708853446389,-1111.1762225,0.000189,2]
[315119237,1708853446398,-2827.48064406,0.0001899,2]
[315119239,1708853822798,1000.0,0.00022,22]
[315119240,1708853833747,12931.613859,0.00018097,2]
[315119273,1708854632583,-1862.38592717,0.0001861,2]
[315119275,1708854632593,-620.80780267,0.00018611,2]
[315119277,1708854632602,-361.59309849,0.00018893,2]
[315119279,1708854632612,-1196.13094068,0.000189,2]
[315119280,1708854632621,-289.0,0.00018989,2]
[315119281,1708854632631,-8229.17049113,0.0001899,2]
[315119282,1708854632640,-152.61629639,0.00019,2]
[315119283,1708854632649,-331.41873505,0.00019078,2]
[315119285,1708854632659,-200.05466556,0.000191,2]
[315119287,1708854632668,-158.12,0.00019168,3]
[315119289,1708854632677,-474.4,0.00019168,3]
[315119291,1708854632690,-743.92907753,0.00019176,2]
[315119293,1708854632699,-255.96712117,0.00019177,2]
[315119295,1708854632708,-500.0,0.00019177,2]
[315119297,1708854632718,-500.0,0.00019178,2]
[315119299,1708854632728,-500.0,0.00019178,2]
[315119301,1708854632740,-500.0,0.00019178,2]
[315119303,1708854632749,-500.0,0.00019178,2]
[315119305,1708854632759,-500.0,0.00019178,2]
[315119307,1708854632773,-500.0,0.00019178,2]
[315119308,1708854632782,-500.0,0.00019178,2]
[315119310,1708854632791,-329.80280131,0.00019178,2]
[315119312,1708854632800,-500.0,0.00019178,2]
[315119314,1708854632809,-500.0,0.00019178,2]
[315119316,1708854632819,-500.0,0.00019178,2]
[315119318,1708854632828,-500.0,0.00019178,2]
[315119320,1708854632837,-203.44016519,0.00019178,2]
[315119322,1708854632846,-500.0,0.00019178,2]
[315119324,1708854632857,-500.0,0.00019178,2]
[315119326,1708854632865,-500.0,0.00019178,2]
[315119328,1708854632875,-500.0,0.00019178,2]
[315119330,1708854632884,-500.0,0.00019178,2]
[315119332,1708854632893,-500.0,0.00019178,2]
[315119334,1708854632901,-500.0,0.00019178,2]
[315119337,1708854633023,-500.0,0.00019178,2]
[315119338,1708854633035,-500.0,0.00019178,2]
[315119339,1708854633044,-500.0,0.00019178,2]
[315119340,1708854633054,-500.0,0.00019178,2]
[315119341,1708854633066,-500.0,0.00019178,2]
[315119342,1708854633075,-500.0,0.00019178,2]
[315119343,1708854633085,-500.0,0.00019178,2]
[315119344,1708854633094,-500.0,0.00019178,2]
[315119345,1708854633103,-500.0,0.00019178,2]
[315119346,1708854633112,-405.08426886,0.00019178,2]
[315119347,1708854633122,-500.0,0.00019178,2]
[315119348,1708854633131,-500.0,0.00019178,2]
[315119349,1708854633140,-500.0,0.00019178,2]
[315119350,1708854633149,-500.0,0.00019178,2]
[315119351,1708854633158,-500.0,0.00019178,2]
[315119352,1708854633167,-500.0,0.00019178,2]
[315119353,1708854633177,-500.0,0.00019178,2]
[315119354,1708854633186,-500.0,0.00019178,2]
[315119355,1708854633195,-500.0,0.00019178,2]
[315119356,1708854633204,-500.0,0.00019178,2]
[315119357,1708854633213,-500.0,0.00019178,2]
[315119358,1708854633222,-500.0,0.00019178,2]
[315119359,1708854633231,-500.0,0.00019178,2]
[315119360,1708854633241,-500.0,0.00019178,2]